[Event "Early-Titled-Tuesday-Blitz-April-23-2024"]
[Site "Chess.com"]
[Date "2024.04.23"]
[Round "1"]
[White "Meri-Arabidze"]
[Black "konradrutkowski"]
[Result "1-0"]
[WhiteElo "2660"]
[BlackElo "2341"]
[TimeControl "180+1"]
[EndTime "8:05:33 PDT"]
[Termination "Meri-Arabidze won by resignation"]

1. Nf3 {[%clk 0:03:00.9]} 1... Nf6 {[%clk 0:02:58.9]} 2. b3 {[%clk 0:03:01]}
2... g6 {[%clk 0:02:58.8]} 3. Bb2 {[%clk 0:03:01.1]} 3... Bg7 {[%clk 0:02:59.3]}
4. g3 {[%clk 0:03:01.7]} 4... O-O {[%clk 0:02:59.7]} 5. Bg2 {[%clk 0:03:02]}
5... c5 {[%clk 0:02:59.8]} 6. O-O {[%clk 0:03:00.7]} 6... Nc6 {[%clk 0:02:59.5]}
7. c4 {[%clk 0:03:00.6]} 7... d6 {[%clk 0:02:58.2]} 8. d4 {[%clk 0:03:00.5]}
8... cxd4 {[%clk 0:02:57.4]} 9. Nxd4 {[%clk 0:03:01.4]} 9... d5 {[%clk
0:02:53.6]} 10. Nd2 {[%clk 0:02:54.9]} 10... Nxd4 {[%clk 0:02:51.4]} 11. Bxd4
{[%clk 0:02:53.6]} 11... Be6 {[%clk 0:02:48.4]} 12. c5 {[%clk 0:02:49.5]} 12...
Re8 {[%clk 0:02:41.1]} 13. b4 {[%clk 0:02:49]} 13... Qd7 {[%clk 0:02:28.9]} 14.
Nf3 {[%clk 0:02:48.1]} 14... Bh3 {[%clk 0:02:25.9]} 15. a3 {[%clk 0:02:37.6]}
15... Bxg2 {[%clk 0:02:24.8]} 16. Kxg2 {[%clk 0:02:38.5]} 16... Qf5 {[%clk
0:02:15.9]} 17. Qd3 {[%clk 0:02:34.9]} 17... Ne4 {[%clk 0:01:50]} 18. Bxg7
{[%clk 0:02:34.1]} 18... Kxg7 {[%clk 0:01:50.1]} 19. Rfd1 {[%clk 0:02:33.4]}
19... Rad8 {[%clk 0:01:49.1]} 20. Rac1 {[%clk 0:02:28.2]} 20... g5 {[%clk
0:01:45]} 21. Rf1 {[%clk 0:02:25.8]} 21... e5 {[%clk 0:01:37.1]} 22. b5 {[%clk
0:02:12.7]} 22... Re6 {[%clk 0:01:13.2]} 23. c6 {[%clk 0:02:10.3]} 23... Rh6
{[%clk 0:01:08.2]} 24. cxb7 {[%clk 0:01:39.2]} 24... Qh3+ {[%clk 0:01:04.7]} 25.
Kg1 {[%clk 0:01:39.6]} 25... g4 {[%clk 0:00:33.1]} 26. Nh4 {[%clk 0:01:39.2]}
26... Rxh4 {[%clk 0:00:32.3]} 27. gxh4 {[%clk 0:01:39.3]} 27... Qxh4 {[%clk
0:00:32.5]} 28. Rc8 {[%clk 0:01:36]} 1-0

[Event "Early-Titled-Tuesday-Blitz-April-23-2024"]
[Site "Chess.com"]
[Date "2024.04.23"]
[Round "1"]
[White "jakopogi"]
[Black "LuisFSiles"]
[Result "1-0"]
[WhiteElo "2789"]
[BlackElo "2452"]
[TimeControl "180+1"]
[EndTime "8:05:37 PDT"]
[Termination "jakopogi won by resignation"]

1. d4 {[%clk 0:02:59.6]} 1... Nf6 {[%clk 0:02:59.2]} 2. c4 {[%clk 0:02:57.4]}
2... g6 {[%clk 0:02:58.9]} 3. Nc3 {[%clk 0:02:51.2]} 3... d5 {[%clk 0:02:58.7]}
4. cxd5 {[%clk 0:02:49.8]} 4... Nxd5 {[%clk 0:02:59.6]} 5. e4 {[%clk 0:02:49.3]}
5... Nxc3 {[%clk 0:02:59.5]} 6. bxc3 {[%clk 0:02:50.2]} 6... Bg7 {[%clk
0:02:59.7]} 7. Nf3 {[%clk 0:02:50.7]} 7... O-O {[%clk 0:02:59.7]} 8. Be2 {[%clk
0:02:48.5]} 8... c5 {[%clk 0:02:59.3]} 9. O-O {[%clk 0:02:47.8]} 9... Bg4 {[%clk
0:02:47.9]} 10. Be3 {[%clk 0:02:44.4]} 10... Bxf3 {[%clk 0:02:29.7]} 11. Bxf3
{[%clk 0:02:39.7]} 11... cxd4 {[%clk 0:02:28.4]} 12. cxd4 {[%clk 0:02:39.4]}
12... Nc6 {[%clk 0:02:28]} 13. e5 {[%clk 0:02:14.6]} 13... e6 {[%clk 0:02:21.3]}
14. Rb1 {[%clk 0:02:14]} 14... Qd7 {[%clk 0:02:15.7]} 15. Qa4 {[%clk 0:01:56.9]}
15... Nxe5 {[%clk 0:01:57.5]} 16. Qxd7 {[%clk 0:01:56.8]} 16... Nxd7 {[%clk
0:01:58.4]} 17. Bxb7 {[%clk 0:01:57.4]} 17... Rad8 {[%clk 0:01:40]} 18. d5
{[%clk 0:01:57.4]} 18... exd5 {[%clk 0:01:38.1]} 19. Bxa7 {[%clk 0:01:56.9]}
19... Nf6 {[%clk 0:01:29.2]} 20. a4 {[%clk 0:01:55.5]} 20... Ne4 {[%clk
0:01:20.9]} 21. a5 {[%clk 0:01:22.6]} 21... Nd2 {[%clk 0:01:18.2]} 22. a6 {[%clk
0:01:22.7]} 22... Nxb1 {[%clk 0:01:10.5]} 23. Rxb1 {[%clk 0:01:22.1]} 23... d4
{[%clk 0:01:10.6]} 24. Bb6 {[%clk 0:01:18.7]} 24... Rb8 {[%clk 0:01:04.3]} 25.
Bc7 {[%clk 0:01:17.7]} 25... d3 {[%clk 0:00:36.2]} 26. Bxb8 {[%clk 0:01:15.6]}
26... Rxb8 {[%clk 0:00:29.5]} 27. a7 {[%clk 0:01:12.8]} 1-0

[Event "Early-Titled-Tuesday-Blitz-April-23-2024"]
[Site "Chess.com"]
[Date "2024.04.23"]
[Round "1"]
[White "BashirovKemal"]
[Black "Artemiki"]
[Result "0-1"]
[WhiteElo "2750"]
[BlackElo "2455"]
[TimeControl "180+1"]
[EndTime "8:05:38 PDT"]
[Termination "Artemiki won by resignation"]

1. e4 {[%clk 0:03:00.9]} 1... c5 {[%clk 0:02:59.1]} 2. Nf3 {[%clk 0:03:01.1]}
2... e6 {[%clk 0:02:59.2]} 3. d4 {[%clk 0:03:01.4]} 3... cxd4 {[%clk 0:03:00.1]}
4. Nxd4 {[%clk 0:03:02.3]} 4... Nc6 {[%clk 0:03:00.4]} 5. Nc3 {[%clk 0:03:02.8]}
5... Qc7 {[%clk 0:03:00.6]} 6. g3 {[%clk 0:03:03.3]} 6... Nf6 {[%clk 0:02:56.7]}
7. Bg2 {[%clk 0:03:02.4]} 7... a6 {[%clk 0:02:56.3]} 8. O-O {[%clk 0:03:01.9]}
8... h5 {[%clk 0:02:56.1]} 9. Bf4 {[%clk 0:02:37.8]} 9... e5 {[%clk 0:02:43.8]}
10. Nxc6 {[%clk 0:02:38]} 10... dxc6 {[%clk 0:02:40.9]} 11. Bg5 {[%clk
0:02:34.7]} 11... Bc5 {[%clk 0:02:28.6]} 12. Kh1 {[%clk 0:02:30.1]} 12... h4
{[%clk 0:02:23.8]} 13. Bxh4 {[%clk 0:02:27.3]} 13... Ng4 {[%clk 0:02:05.1]} 14.
Qe2 {[%clk 0:02:22.5]} 14... g5 {[%clk 0:02:03]} 15. Bxg5 {[%clk 0:02:02.2]}
15... Nxh2 {[%clk 0:01:54]} 16. Kg1 {[%clk 0:01:47.9]} 16... Bg4 {[%clk
0:01:17.3]} 17. Qc4 {[%clk 0:01:42.1]} 17... Nf3+ {[%clk 0:01:07.4]} 18. Bxf3
{[%clk 0:01:37.2]} 18... Bxf3 {[%clk 0:01:08.3]} 19. Bh4 {[%clk 0:01:32.8]}
19... Rxh4 {[%clk 0:00:56]} 20. gxh4 {[%clk 0:01:28.6]} 20... Qd7 {[%clk
0:00:47.9]} 0-1

[Event "Early-Titled-Tuesday-Blitz-April-23-2024"]
[Site "Chess.com"]
[Date "2024.04.23"]
[Round "1"]
[White "jumpingknight20"]
[Black "duone"]
[Result "1-0"]
[WhiteElo "2735"]
[BlackElo "2418"]
[TimeControl "180+1"]
[EndTime "8:05:38 PDT"]
[Termination "jumpingknight20 won by checkmate"]

1. b3 {[%clk 0:03:00.9]} 1... Nf6 {[%clk 0:02:58.8]} 2. Bb2 {[%clk 0:03:01]}
2... g6 {[%clk 0:02:56.1]} 3. Nf3 {[%clk 0:03:00.7]} 3... Bg7 {[%clk 0:02:55.7]}
4. e3 {[%clk 0:03:01]} 4... O-O {[%clk 0:02:55.8]} 5. c4 {[%clk 0:03:01.2]} 5...
c6 {[%clk 0:02:54.8]} 6. d4 {[%clk 0:02:59.2]} 6... d5 {[%clk 0:02:54.3]} 7. Nc3
{[%clk 0:02:59.4]} 7... Bf5 {[%clk 0:02:52.9]} 8. Bd3 {[%clk 0:02:58.9]} 8...
Ne4 {[%clk 0:02:51.1]} 9. O-O {[%clk 0:02:58.6]} 9... Nd7 {[%clk 0:02:34.5]} 10.
Rc1 {[%clk 0:02:29.9]} 10... Ndf6 {[%clk 0:02:33]} 11. Ne5 {[%clk 0:02:29.5]}
11... Nxc3 {[%clk 0:02:27.4]} 12. Bxc3 {[%clk 0:02:30.4]} 12... Bxd3 {[%clk
0:02:27.5]} 13. Qxd3 {[%clk 0:02:29.4]} 13... Ne4 {[%clk 0:02:28]} 14. Bb2
{[%clk 0:02:26.3]} 14... f6 {[%clk 0:02:12.3]} 15. Nf3 {[%clk 0:02:22.7]} 15...
a5 {[%clk 0:02:11.9]} 16. cxd5 {[%clk 0:02:21]} 16... cxd5 {[%clk 0:02:11.1]}
17. Qb5 {[%clk 0:02:19.7]} 17... b6 {[%clk 0:02:03.2]} 18. Ba3 {[%clk 0:02:18]}
18... Rf7 {[%clk 0:02:00.4]} 19. Rc6 {[%clk 0:02:13.1]} 19... Rb8 {[%clk
0:02:00]} 20. Rfc1 {[%clk 0:02:10.6]} 20... e5 {[%clk 0:02:00.1]} 21. Qa6 {[%clk
0:01:50.5]} 21... Bf8 {[%clk 0:01:32.6]} 22. Rc8 {[%clk 0:01:44.1]} 22... Rxc8
{[%clk 0:01:32.1]} 23. Rxc8 {[%clk 0:01:44.1]} 23... Qd7 {[%clk 0:01:18.8]} 24.
Qa8 {[%clk 0:01:41.1]} 24... Nd6 {[%clk 0:01:18.4]} 25. Rd8 {[%clk 0:01:31]}
25... Qf5 {[%clk 0:01:08]} 26. h3 {[%clk 0:01:22.6]} 26... Qb1+ {[%clk
0:00:41.6]} 27. Kh2 {[%clk 0:01:22.3]} 27... e4 {[%clk 0:00:34.7]} 28. Bxd6
{[%clk 0:01:19.2]} 28... exf3 {[%clk 0:00:35]} 29. Rxf8+ {[%clk 0:01:16]} 29...
Kg7 {[%clk 0:00:35.4]} 30. Rxf7+ {[%clk 0:01:16.3]} 30... Kxf7 {[%clk
0:00:35.9]} 31. Qf8+ {[%clk 0:01:16.9]} 31... Ke6 {[%clk 0:00:36.4]} 32. Qe7+
{[%clk 0:01:17.6]} 32... Kf5 {[%clk 0:00:36.8]} 33. g4+ {[%clk 0:01:14.5]} 33...
Kg5 {[%clk 0:00:37.1]} 34. Bf4+ {[%clk 0:01:14.7]} 34... Kh4 {[%clk 0:00:37.6]}
35. Qxh7# {[%clk 0:01:14.3]} 1-0

[Event "Early-Titled-Tuesday-Blitz-April-23-2024"]
[Site "Chess.com"]
[Date "2024.04.23"]
[Round "1"]
[White "bescmelasti"]
[Black "PattyCastillo"]
[Result "1-0"]
[WhiteElo "2595"]
[BlackElo "2125"]
[TimeControl "180+1"]
[EndTime "8:05:43 PDT"]
[Termination "bescmelasti won by resignation"]

1. e4 {[%clk 0:03:00.4]} 1... c5 {[%clk 0:02:57.3]} 2. Nf3 {[%clk 0:02:58.1]}
2... d6 {[%clk 0:02:47.5]} 3. Bc4 {[%clk 0:02:54.8]} 3... e6 {[%clk 0:02:42.9]}
4. d3 {[%clk 0:02:52.2]} 4... Nf6 {[%clk 0:02:27.5]} 5. O-O {[%clk 0:02:51.7]}
5... Be7 {[%clk 0:02:04.5]} 6. Bb3 {[%clk 0:02:49.2]} 6... O-O {[%clk
0:01:49.2]} 7. c3 {[%clk 0:02:48.7]} 7... Nc6 {[%clk 0:01:41.8]} 8. Re1 {[%clk
0:02:48.4]} 8... Qc7 {[%clk 0:01:37]} 9. Nbd2 {[%clk 0:02:40.4]} 9... b5 {[%clk
0:01:33.9]} 10. Nf1 {[%clk 0:02:35.8]} 10... a5 {[%clk 0:01:32.3]} 11. a4 {[%clk
0:02:35.2]} 11... Rb8 {[%clk 0:01:31.9]} 12. axb5 {[%clk 0:02:35]} 12... Rxb5
{[%clk 0:01:30.6]} 13. Ng3 {[%clk 0:02:25.3]} 13... Rb8 {[%clk 0:01:28.4]} 14.
Ba4 {[%clk 0:02:15.6]} 14... Bd7 {[%clk 0:01:27.3]} 15. h3 {[%clk 0:02:09.9]}
15... Rfd8 {[%clk 0:01:27.3]} 16. Qe2 {[%clk 0:02:06.1]} 16... Re8 {[%clk
0:01:24]} 17. e5 {[%clk 0:01:52.2]} 17... Nxe5 {[%clk 0:01:17.5]} 18. Nxe5
{[%clk 0:01:53.1]} 18... dxe5 {[%clk 0:01:12.3]} 19. Qxe5 {[%clk 0:01:49]} 19...
Qxe5 {[%clk 0:01:09.3]} 20. Rxe5 {[%clk 0:01:48.1]} 20... Bxa4 {[%clk
0:01:09.9]} 21. Rxa4 {[%clk 0:01:49]} 21... Bd6 {[%clk 0:01:09.9]} 22. Re1
{[%clk 0:01:45.5]} 22... Bxg3 {[%clk 0:01:03.8]} 23. fxg3 {[%clk 0:01:46.4]}
23... Nd5 {[%clk 0:01:03.3]} 24. Rxa5 {[%clk 0:01:44]} 24... Red8 {[%clk
0:01:00.3]} 25. Rxc5 {[%clk 0:01:43.2]} 25... h6 {[%clk 0:00:56.9]} 26. g4
{[%clk 0:01:35.4]} 26... Nf6 {[%clk 0:00:55.2]} 27. d4 {[%clk 0:01:34.8]} 27...
Nd5 {[%clk 0:00:54.4]} 28. Re2 {[%clk 0:01:31.3]} 28... Rbc8 {[%clk 0:00:52.7]}
29. Rxc8 {[%clk 0:01:30.9]} 29... Rxc8 {[%clk 0:00:53]} 30. Kf2 {[%clk
0:01:31.5]} 30... Nb6 {[%clk 0:00:51.7]} 31. Rc2 {[%clk 0:01:30.5]} 31... Nc4
{[%clk 0:00:50.2]} 32. Ke2 {[%clk 0:01:21.9]} 32... Nd6 {[%clk 0:00:48.5]} 33.
Kd3 {[%clk 0:01:22]} 33... Nb5 {[%clk 0:00:47.2]} 34. c4 {[%clk 0:01:21.8]}
34... Nd6 {[%clk 0:00:44.6]} 35. b4 {[%clk 0:01:22.3]} 35... Kf8 {[%clk
0:00:43]} 36. Bf4 {[%clk 0:01:20.8]} 36... Nb7 {[%clk 0:00:41.4]} 37. c5 {[%clk
0:01:20.3]} 37... Ke8 {[%clk 0:00:41.4]} 38. c6 {[%clk 0:01:19.4]} 38... Nd8
{[%clk 0:00:40.2]} 39. b5 {[%clk 0:01:20.3]} 1-0

[Event "Early-Titled-Tuesday-Blitz-April-23-2024"]
[Site "Chess.com"]
[Date "2024.04.23"]
[Round "1"]
[White "viviania"]
[Black "LeoLV10"]
[Result "1-0"]
[WhiteElo "2903"]
[BlackElo "2509"]
[TimeControl "180+1"]
[EndTime "8:05:47 PDT"]
[Termination "viviania won by resignation"]

1. Nf3 {[%clk 0:02:58.2]} 1... d5 {[%clk 0:02:58.6]} 2. g3 {[%clk 0:02:58.3]}
2... Nf6 {[%clk 0:02:57.2]} 3. Bg2 {[%clk 0:02:58.5]} 3... g6 {[%clk 0:02:57.8]}
4. c4 {[%clk 0:02:57.8]} 4... Bg7 {[%clk 0:02:58.7]} 5. cxd5 {[%clk 0:02:57.6]}
5... Nxd5 {[%clk 0:02:58.5]} 6. Nc3 {[%clk 0:02:57.8]} 6... Nxc3 {[%clk
0:02:58]} 7. bxc3 {[%clk 0:02:57.6]} 7... O-O {[%clk 0:02:58.6]} 8. O-O {[%clk
0:02:57.5]} 8... c6 {[%clk 0:02:58.5]} 9. d4 {[%clk 0:02:57.1]} 9... Nd7 {[%clk
0:02:59]} 10. e4 {[%clk 0:02:55.5]} 10... Nb6 {[%clk 0:02:58.2]} 11. Bf4 {[%clk
0:02:53.2]} 11... Be6 {[%clk 0:02:58.3]} 12. Re1 {[%clk 0:02:52.1]} 12... Bc4
{[%clk 0:02:40]} 13. a4 {[%clk 0:02:47.1]} 13... Ba6 {[%clk 0:02:38.1]} 14. Qc1
{[%clk 0:02:41.9]} 14... Nc4 {[%clk 0:02:37.5]} 15. Bh6 {[%clk 0:02:38.5]} 15...
Re8 {[%clk 0:02:27.5]} 16. Bxg7 {[%clk 0:02:37.8]} 16... Kxg7 {[%clk 0:02:28.4]}
17. h4 {[%clk 0:02:37.8]} 17... e5 {[%clk 0:02:26.3]} 18. h5 {[%clk 0:02:37.1]}
18... Qf6 {[%clk 0:02:21]} 19. h6+ {[%clk 0:02:25.3]} 19... Kg8 {[%clk
0:02:19.5]} 20. Nh2 {[%clk 0:02:22.1]} 20... exd4 {[%clk 0:02:14.1]} 21. Ng4
{[%clk 0:02:22.1]} 21... Qd8 {[%clk 0:02:06.5]} 22. Qf4 {[%clk 0:02:06.2]} 22...
Re6 {[%clk 0:01:51.2]} 23. cxd4 {[%clk 0:02:06.2]} 23... Qxd4 {[%clk 0:01:29.8]}
24. Rad1 {[%clk 0:02:06.1]} 24... Qb2 {[%clk 0:01:30.4]} 25. e5 {[%clk
0:01:54.4]} 25... Rf8 {[%clk 0:01:23.7]} 26. Nf6+ {[%clk 0:01:45.6]} 26... Kh8
{[%clk 0:01:23.5]} 27. Nd7 {[%clk 0:01:45.8]} 27... Rfe8 {[%clk 0:01:09.3]} 28.
Qxf7 {[%clk 0:01:42.7]} 28... R6e7 {[%clk 0:01:08.3]} 29. Qf6+ {[%clk 0:01:19]}
29... Kg8 {[%clk 0:01:08.1]} 30. Bh3 {[%clk 0:00:52.7]} 30... Rf7 {[%clk
0:00:53.4]} 31. Be6 {[%clk 0:00:52.5]} 31... Rxe6 {[%clk 0:00:53.2]} 32. Qd8+
{[%clk 0:00:52.6]} 1-0

[Event "Early-Titled-Tuesday-Blitz-April-23-2024"]
[Site "Chess.com"]
[Date "2024.04.23"]
[Round "1"]
[White "RodTwinkz"]
[Black "Tol_Tol"]
[Result "1-0"]
[WhiteElo "2691"]
[BlackElo "2383"]
[TimeControl "180+1"]
[EndTime "8:05:48 PDT"]
[Termination "RodTwinkz won by resignation"]

1. e4 {[%clk 0:02:56.9]} 1... c5 {[%clk 0:02:59.5]} 2. Nc3 {[%clk 0:02:56]} 2...
Nc6 {[%clk 0:02:59.7]} 3. f4 {[%clk 0:02:55.8]} 3... g6 {[%clk 0:02:56.3]} 4.
Nf3 {[%clk 0:02:55.3]} 4... Bg7 {[%clk 0:02:56.7]} 5. Bc4 {[%clk 0:02:53.9]}
5... e6 {[%clk 0:02:56.7]} 6. e5 {[%clk 0:02:53.6]} 6... Nge7 {[%clk 0:02:56.8]}
7. Ne4 {[%clk 0:02:53.2]} 7... Nf5 {[%clk 0:02:55]} 8. Nxc5 {[%clk 0:02:50.3]}
8... d6 {[%clk 0:02:50.2]} 9. exd6 {[%clk 0:02:38.4]} 9... Qxd6 {[%clk
0:02:49.7]} 10. Ne4 {[%clk 0:02:28.9]} 10... Qxf4 {[%clk 0:02:45.4]} 11. d3
{[%clk 0:02:29]} 11... Qg4 {[%clk 0:02:13.2]} 12. O-O {[%clk 0:02:18.4]} 12...
Ncd4 {[%clk 0:02:05.1]} 13. c3 {[%clk 0:01:44.2]} 13... Nxf3+ {[%clk 0:02:04.3]}
14. Rxf3 {[%clk 0:00:58.7]} 14... O-O {[%clk 0:01:22.6]} 15. h3 {[%clk
0:00:57.6]} 1-0

[Event "Early-Titled-Tuesday-Blitz-April-23-2024"]
[Site "Chess.com"]
[Date "2024.04.23"]
[Round "1"]
[White "Ginger_GM"]
[Black "Kostukov_Alex"]
[Result "1-0"]
[WhiteElo "2644"]
[BlackElo "2328"]
[TimeControl "180+1"]
[EndTime "8:05:53 PDT"]
[Termination "Ginger_GM won on time"]

1. d4 {[%clk 0:02:54.5]} 1... g6 {[%clk 0:02:59.3]} 2. h4 {[%clk 0:02:52.8]}
2... Nf6 {[%clk 0:02:58.2]} 3. Nc3 {[%clk 0:02:51.1]} 3... d5 {[%clk 0:02:56.2]}
4. Bf4 {[%clk 0:02:50.1]} 4... Bg7 {[%clk 0:02:54.3]} 5. e3 {[%clk 0:02:48.5]}
5... c5 {[%clk 0:02:50.9]} 6. Nb5 {[%clk 0:02:44.4]} 6... Na6 {[%clk 0:02:43.8]}
7. c3 {[%clk 0:02:41.9]} 7... O-O {[%clk 0:02:34]} 8. Be2 {[%clk 0:02:32.1]}
8... h5 {[%clk 0:02:32.2]} 9. Nf3 {[%clk 0:02:30.1]} 9... c4 {[%clk 0:02:14.7]}
10. b3 {[%clk 0:02:26.4]} 10... cxb3 {[%clk 0:01:36.4]} 11. axb3 {[%clk
0:02:24.7]} 11... Bf5 {[%clk 0:01:35.2]} 12. O-O {[%clk 0:02:20.6]} 12... Qb6
{[%clk 0:01:25.9]} 13. c4 {[%clk 0:02:15.9]} 13... Ne4 {[%clk 0:01:14.4]} 14.
cxd5 {[%clk 0:02:00.5]} 14... Rad8 {[%clk 0:01:04.5]} 15. Bc4 {[%clk 0:01:51.4]}
15... Bd7 {[%clk 0:00:55.3]} 16. Qd3 {[%clk 0:01:32.4]} 16... Bf5 {[%clk
0:00:25.4]} 17. Qe2 {[%clk 0:01:31.5]} 17... Nf6 {[%clk 0:00:14.8]} 18. Nc3
{[%clk 0:01:21.9]} 18... Ne4 {[%clk 0:00:11.6]} 19. Na4 {[%clk 0:01:13.7]} 19...
Qb4 {[%clk 0:00:07.1]} 20. Rfc1 {[%clk 0:01:05.7]} 20... Rc8 {[%clk 0:00:03.7]}
21. Be5 {[%clk 0:00:59.7]} 1-0

[Event "Early-Titled-Tuesday-Blitz-April-23-2024"]
[Site "Chess.com"]
[Date "2024.04.23"]
[Round "1"]
[White "szachuspl"]
[Black "KuzubovYuriy"]
[Result "0-1"]
[WhiteElo "2525"]
[BlackElo "2927"]
[TimeControl "180+1"]
[EndTime "8:05:55 PDT"]
[Termination "KuzubovYuriy won by checkmate"]

1. d4 {[%clk 0:03:00.9]} 1... d5 {[%clk 0:02:58.7]} 2. c4 {[%clk 0:03:00.8]}
2... e6 {[%clk 0:02:59.4]} 3. Nc3 {[%clk 0:03:00.5]} 3... Nf6 {[%clk 0:03:00.1]}
4. Nf3 {[%clk 0:03:00.6]} 4... Be7 {[%clk 0:02:58.5]} 5. Bg5 {[%clk 0:03:00]}
5... h6 {[%clk 0:02:57.9]} 6. Bxf6 {[%clk 0:02:58.6]} 6... Bxf6 {[%clk
0:02:57.9]} 7. e3 {[%clk 0:02:59.1]} 7... O-O {[%clk 0:02:56.6]} 8. Rc1 {[%clk
0:02:58.9]} 8... a6 {[%clk 0:02:54.5]} 9. a4 {[%clk 0:02:43.3]} 9... c6 {[%clk
0:02:52.4]} 10. h4 {[%clk 0:02:38.9]} 10... g6 {[%clk 0:02:43.9]} 11. g4 {[%clk
0:02:38.5]} 11... Bg7 {[%clk 0:02:44.1]} 12. g5 {[%clk 0:02:18.4]} 12... h5
{[%clk 0:02:42.9]} 13. Bd3 {[%clk 0:02:16]} 13... Nd7 {[%clk 0:02:42.5]} 14. Ne2
{[%clk 0:02:15.3]} 14... e5 {[%clk 0:02:30.2]} 15. cxd5 {[%clk 0:02:11.4]} 15...
cxd5 {[%clk 0:02:31.1]} 16. dxe5 {[%clk 0:02:11.3]} 16... Nxe5 {[%clk
0:02:31.2]} 17. Ned4 {[%clk 0:01:56]} 17... Nxf3+ {[%clk 0:02:15.1]} 18. Qxf3
{[%clk 0:01:48.3]} 18... Re8 {[%clk 0:02:08.4]} 19. O-O {[%clk 0:01:43.4]} 19...
Qd6 {[%clk 0:02:05.7]} 20. Kg2 {[%clk 0:01:30.4]} 20... Bg4 {[%clk 0:02:01.1]}
21. Qg3 {[%clk 0:01:30.6]} 21... Be5 {[%clk 0:02:00.6]} 22. f4 {[%clk
0:01:30.8]} 22... Bg7 {[%clk 0:01:46.9]} 23. Qf2 {[%clk 0:01:22.5]} 23... Rac8
{[%clk 0:01:21.9]} 24. Qd2 {[%clk 0:01:12.4]} 24... Qd7 {[%clk 0:01:12.3]} 25.
Rxc8 {[%clk 0:01:03.5]} 25... Rxc8 {[%clk 0:01:12.1]} 26. Ra1 {[%clk 0:00:47.7]}
26... Re8 {[%clk 0:01:02.7]} 27. b3 {[%clk 0:00:46.9]} 27... Bxd4 {[%clk
0:00:57.7]} 28. exd4 {[%clk 0:00:46.8]} 28... Bf3+ {[%clk 0:00:57.7]} 29. Kf1
{[%clk 0:00:30]} 29... Qh3+ {[%clk 0:00:56.1]} 30. Kg1 {[%clk 0:00:26.4]} 30...
Qh1+ {[%clk 0:00:54.5]} 31. Kf2 {[%clk 0:00:26.1]} 31... Qg2# {[%clk 0:00:55.4]}
0-1

[Event "Early-Titled-Tuesday-Blitz-April-23-2024"]
[Site "Chess.com"]
[Date "2024.04.23"]
[Round "1"]
[White "rezamahdavi2008"]
[Black "jup1978"]
[Result "1-0"]
[WhiteElo "2908"]
[BlackElo "2515"]
[TimeControl "180+1"]
[EndTime "8:05:55 PDT"]
[Termination "rezamahdavi2008 won by checkmate"]

1. e4 {[%clk 0:02:59.1]} 1... c6 {[%clk 0:02:45.1]} 2. d4 {[%clk 0:02:54.9]}
2... d5 {[%clk 0:02:46]} 3. exd5 {[%clk 0:02:54.7]} 3... cxd5 {[%clk 0:02:43.2]}
4. Bd3 {[%clk 0:02:54.5]} 4... Nc6 {[%clk 0:02:43]} 5. c3 {[%clk 0:02:54.3]}
5... Nf6 {[%clk 0:02:39.7]} 6. Nf3 {[%clk 0:02:50.2]} 6... Bg4 {[%clk
0:02:39.3]} 7. h3 {[%clk 0:02:50.1]} 7... Bxf3 {[%clk 0:02:39.3]} 8. Qxf3 {[%clk
0:02:51]} 8... e6 {[%clk 0:02:39.9]} 9. O-O {[%clk 0:02:48.1]} 9... Be7 {[%clk
0:02:36.4]} 10. Bf4 {[%clk 0:02:47.5]} 10... O-O {[%clk 0:02:35.2]} 11. Nd2
{[%clk 0:02:47]} 11... h6 {[%clk 0:02:33.7]} 12. Qe2 {[%clk 0:02:43]} 12... Bd6
{[%clk 0:02:28.6]} 13. Bxd6 {[%clk 0:02:34.5]} 13... Qxd6 {[%clk 0:02:27.9]} 14.
Nf3 {[%clk 0:02:35.4]} 14... Rfe8 {[%clk 0:02:27.3]} 15. Rfe1 {[%clk 0:02:34.4]}
15... Nd7 {[%clk 0:02:25.2]} 16. Ne5 {[%clk 0:02:28.9]} 16... f6 {[%clk
0:02:18.1]} 17. Nxd7 {[%clk 0:02:18.1]} 17... Qxd7 {[%clk 0:02:19]} 18. Qg4
{[%clk 0:02:18.8]} 18... Rad8 {[%clk 0:02:09.1]} 19. Bg6 {[%clk 0:02:07.1]}
19... Re7 {[%clk 0:02:03.3]} 20. Re3 {[%clk 0:02:06.5]} 20... e5 {[%clk
0:02:01.3]} 21. Bf5 {[%clk 0:02:05.2]} 21... Qe8 {[%clk 0:02:01.3]} 22. Rae1
{[%clk 0:02:04.8]} 22... Kf8 {[%clk 0:01:31.4]} 23. Bc2 {[%clk 0:01:50.6]} 23...
Qf7 {[%clk 0:01:24.7]} 24. dxe5 {[%clk 0:01:29.7]} 24... Rxe5 {[%clk 0:01:21.3]}
25. f4 {[%clk 0:01:21.5]} 25... Rxe3 {[%clk 0:01:18.5]} 26. Rxe3 {[%clk
0:01:22.4]} 26... d4 {[%clk 0:01:09.9]} 27. cxd4 {[%clk 0:01:22.4]} 27... Nxd4
{[%clk 0:01:07.9]} 28. Bg6 {[%clk 0:01:22.5]} 28... Qc4 {[%clk 0:00:59.4]} 29.
Qd7 {[%clk 0:01:17.4]} 29... Ne6 {[%clk 0:00:18.1]} 30. Qxd8+ {[%clk 0:01:07.1]}
30... Nxd8 {[%clk 0:00:16.6]} 31. Re8# {[%clk 0:01:08]} 1-0

[Event "Early-Titled-Tuesday-Blitz-April-23-2024"]
[Site "Chess.com"]
[Date "2024.04.23"]
[Round "1"]
[White "DvaHrasta"]
[Black "Aygehovit1992"]
[Result "0-1"]
[WhiteElo "2417"]
[BlackElo "2734"]
[TimeControl "180+1"]
[EndTime "8:05:55 PDT"]
[Termination "Aygehovit1992 won on time"]

1. c4 {[%clk 0:03:00.9]} 1... e5 {[%clk 0:02:57.9]} 2. g3 {[%clk 0:03:00.6]}
2... g6 {[%clk 0:02:57.3]} 3. d4 {[%clk 0:02:59.5]} 3... Bg7 {[%clk 0:02:54.1]}
4. dxe5 {[%clk 0:02:59]} 4... Nc6 {[%clk 0:02:54.7]} 5. f4 {[%clk 0:02:55.1]}
5... d6 {[%clk 0:02:53.2]} 6. exd6 {[%clk 0:02:52.8]} 6... cxd6 {[%clk
0:02:54.1]} 7. Nc3 {[%clk 0:02:44.7]} 7... Nge7 {[%clk 0:02:54.2]} 8. Be3 {[%clk
0:02:29.9]} 8... O-O {[%clk 0:02:51.1]} 9. Bf2 {[%clk 0:02:28]} 9... Qa5 {[%clk
0:02:41.8]} 10. Qd2 {[%clk 0:02:23.2]} 10... Nf5 {[%clk 0:02:33.8]} 11. Nf3
{[%clk 0:02:15.9]} 11... Be6 {[%clk 0:02:20.2]} 12. e4 {[%clk 0:02:10.5]} 12...
Rfe8 {[%clk 0:02:20.2]} 13. Be2 {[%clk 0:02:01.3]} 13... Bxc4 {[%clk 0:02:04.2]}
14. Bxc4 {[%clk 0:01:28.4]} 14... Bxc3 {[%clk 0:02:02.3]} 15. bxc3 {[%clk
0:01:15.3]} 15... Rxe4+ {[%clk 0:02:01.2]} 16. Kf1 {[%clk 0:00:44.8]} 16... Rxc4
{[%clk 0:02:00.8]} 17. Rc1 {[%clk 0:00:41.8]} 17... Rc8 {[%clk 0:01:07]} 18. Kg2
{[%clk 0:00:34.8]} 18... Nce7 {[%clk 0:01:07.7]} 19. g4 {[%clk 0:00:17.1]} 19...
Ng7 {[%clk 0:01:06.9]} 20. Qxd6 {[%clk 0:00:12.8]} 20... Nd5 {[%clk 0:01:06.9]}
21. Rhd1 {[%clk 0:00:08.5]} 21... Nxf4+ {[%clk 0:01:06.3]} 22. Kh1 {[%clk
0:00:01.2]} 22... Nge6 {[%clk 0:01:03.5]} 0-1